Cogmind - Beta 15 @@@ ROGUE MODE // 2025.05.25 @ 05:34:02 Player: puppuppit Result: Destroyed by 6D-ZEF(R) with Subdweller Laser Performance ------------- Evolutions (0) 0 Regions Visited (2) 400 Robots Destroyed (43) 215 Value Destroyed (744) 744 Prototype IDs (1) 20 Alien Tech Used (0) 0 Bonus (0) 0 TOTAL SCORE: 1379 Bonus ------- None Cogmind --------- Core Integrity 0/250 Matter 256/300 Energy 200/200 System Corruption 0% Temperature Cool (6) Movement Rolling (95) Location -10/Subcaves Parts ------- > --- POWER (1) -------- Subdweller Power Source > --- PROPULSION (2) --- Wheel Subdweller Monowheel > --- UTILITY (2) ------ Medium Storage Unit Structural Scanner > --- WEAPON (2) ------- Battle Rifle Barrage Gun > --- INVENTORY (10) --- Subdweller Power Source Subdweller Power Source Subdweller Monowheel Subdweller Monowheel Medium Matter Pod (100) Subdweller Optics Subdweller Laser Assault Rifle Light Cannon Battle Cannon Peak State ------------ > --- POWER ------------ Heavy Ion Engine > --- PROPULSION ------- Wheel Wheel > --- UTILITY ---------- Medium Storage Unit Improved Terrain Scanner > --- WEAPON ----------- Light EM Pulse Cannon Light EM Pulse Cannon > --- INVENTORY -------- Wheel Wheel Wheel Medium Matter Pod Improved Terrain Scanner Improved Terrain Scanner Hacking Suite Assault Rifle Light Assault Rifle Hammer [Rating: 14] Favorites ----------- Power Heavy Ion Engine Engine Heavy Ion Engine Propulsion Wheel Wheel Wheel Utility Medium Storage Unit Device Structural Scanner Storage Medium Storage Unit Weapon Light EM Pulse Cannon Energy Gun Medium Laser Energy Cannon Light EM Pulse Cannon Ballistic Gun Battle Rifle Ballistic Cannon Light Cannon Build | -11 -10 -10 ------- Run | Yrd Mat Sub Slots Evolved . | . . . Power . | . . . Propulsion . | . . . Utility . | . . . Weapon . | . . . Parts Attached 30 | 9 12 9 Power 6 | 1 3 2 Engine 6 | 1 3 2 Core . | . . . Reactor . | . . . Propulsion 8 | 3 1 4 Treads . | . . . Leg . | . . . Wheel 8 | 3 1 4 Hover . | . . . Flight . | . . . Utility 5 | 2 3 . Device 2 | 1 1 . Storage 3 | 1 2 . Processor . | . . . Hackware . | . . . Protection . | . . . Artifact . | . . . Weapon 11 | 3 5 3 Energy Gun 2 | 2 . . Energy Cannon 4 | . 4 . Ballistic Gun 4 | 1 1 2 Ballistic Cannon 1 | . . 1 Launcher . | . . . Special Weapon . | . . . Impact Weapon . | . . . Slashing Weapon . | . . . Piercing Weapon . | . . . Special Melee Weapon . | . . . Unidentified Prototypes 1 | . 1 . Parts Lost 6 | . 3 3 Power . | . . . Propulsion 3 | . . 3 Utility 1 | . 1 . Weapon 2 | . 2 . Highest Loss Streak 2 | . 2 1 To Critical Strikes . | . . . Average Backups 9 | 1 9 9 Power 1 | . 1 2 Propulsion 2 | . 2 1 Utility 2 | . 3 2 Weapon 2 | . 2 3 Tool/Special . | . . . Unused Backups 18 | . 6 12 Power 3 | . . 3 Propulsion 3 | . 1 2 Utility 6 | . 2 4 Weapon 6 | . 3 3 Tool/Special . | . . . Average Slot Usage (%) 98 | . 97 99 Engine 14 | . 14 14 Wheel 27 | . 28 27 Device 13 | . 11 14 Storage 14 | . 14 14 Energy Gun 1 | . 3 . Energy Cannon 11 | . 17 6 Ballistic Gun 11 | . 6 16 Ballistic Cannon 2 | . . 4 Peak Build Rating 14 | 10 14 14 Average Rating 11 | 6 11 12 On Entrance 7 | . 10 12 Naked Turns . | . . . Heaviest Build 27 | 13 27 27 Greatest Support 30 | 26 20 30 Greatest Overweight (x) 2 | . 1 2 Average Overweight (x) . | . . . Largest Inventory Capacity 10 | 8 10 10 Average Capacity 9 | 7 9 10 Most Carried 10 | 8 10 10 Average Carried 9 | 1 9 9 Final Capacity 10 | 8 10 10 Final Carried 10 | 8 10 10 Class Distribution -------------------- 93% | Mutant 6% | Scavenger-Mutant Dominant Class ---------------- Mutant | -10/Materials Mutant | -10/Subcaves Resources | -11 -10 -10 ----------- Run | Yrd Mat Sub Matter Collected 1073 | 422 175 476 Remotely . | . . . Salvage Created 1117 | 262 507 348 Parts 93 | 23 39 31 Haulers Intercepted 1 | . 1 . Recyclers Shooed . | . . . Parts Field Recycled . | . . . Retrieved Matter . | . . . Parts Self-Destructed 10 | . . 10 Prevented 1 | . . 1 Kills | -11 -10 -10 ------- Run | Yrd Mat Sub Combat Hostiles Destroyed 28 | . 14 14 Guns 12 | . 4 8 Cannons 11 | . 7 4 AOE 4 | . 2 2 Classes Destroyed 10 | 3 6 1 Worker 4 | 2 2 . Builder 1 | . 1 . Tunneler 5 | 5 . . Hauler 1 | . 1 . Recycler 1 | 1 . . Operator 2 | . 2 . Watcher 1 | . 1 . Swarmer 15 | . 8 7 Grunt 6 | . 6 . Subdweller 7 | . . 7 Best Kill Streak 5 | 5 5 4 Combat Bots Only 4 | . 4 4 Max Kills in Single Turn 2 | 1 2 2 Gunslinging . | . . . Exploded 2 | . 1 2 Melee . | . . . Uniques/NPCs Destroyed . | . . . Combat | -11 -10 -10 -------- Run | Yrd Mat Sub Hostile Shots Fired 120 | . 55 65 Missed 35 | . 18 17 Hits 85 | . 37 48 Projectile 85 | . 37 48 Critical Strikes 1 | . . 1 Damage Taken 1104 | . 438 666 Core 253 | . 80 173 Absorbed by Shields . | . . . Core Remaining (%) 100 | 100 . . Volleys Fired 145 | 13 42 90 Largest 2 | 2 2 2 Hottest 112 | 90 112 86 Shots Fired 230 | 26 74 130 Gun 134 | 26 32 76 Cannon 96 | . 42 54 Launcher . | . . . Special . | . . . Kinetic 144 | 11 18 115 Thermal 29 | 15 14 . Explosive . | . . . Electromagnetic 57 | . 42 15 Robot Hit Streak 13 | 8 5 13 Robot Miss Streak 6 | 1 3 6 Penetration Max . | . . . Secondary Targets 3 | . . 3 Max Gunslinging Chain 1 | . . 1 Shots Hit Robots 119 | 16 46 57 Core Hits 51 | 9 22 20 Critical Kills 1 | . 1 . Critical Parts Destroyed . | . . . Critical Strikes 8 | 2 4 2 Burn 3 | 2 1 . Destroy 1 | . 1 . Blast 2 | . . 2 Corrupt 2 | . 2 . Melee Attacks . | . . . Impact . | . . . Slashing . | . . . Piercing . | . . . Sneak Attacks . | . . . Combat Hostiles . | . . . Follow-up Attacks . | . . . Damage Inflicted 2360 | 198 1192 970 Guns 958 | 198 290 470 Cannons 1102 | . 680 422 Explosions 300 | . 222 78 Melee . | . . . Ramming . | . . . Kinetic 897 | 71 161 665 Thermal 556 | 127 351 78 Explosive . | . . . Electromagnetic 907 | . 680 227 Impact . | . . . Slashing . | . . . Piercing . | . . . Highest Corruption . | . . . Average Corruption . | . . . Corruption Purged . | . . . Corruption Blocked . | . . . Overload Shots . | . . . Overflow Damage . | . . . Projectiles . | . . . Explosions . | . . . Melee . | . . . Knockbacks 1 | . . 1 Impact . | . . . Kinetic 1 | . . 1 Secondary . | . . . Self-Inflicted Damage 89 | . 89 . Shots 3 | . 3 . Rammed . | . . . Targets Rammed . | . . . Kicked . | . . . Crushed . | . . . Highest Temperature 306 | 60 306 17 Average Temperature 84 | 26 100 11 Received Heat Transfer 216 | . 108 108 Effects 1 | . 1 . Energy Bleed 1 | . 1 . Siege Activations . | . . . Martial Activations . | . . . Shielding Activations . | . . . Robots Disrupted 1 | . . 1 Combat Hostiles 1 | . . 1 Robots Corrupted 1 | . 1 . Combat Hostiles 1 | . 1 . Parts Fried 4 | . 4 . Impact Corruptions . | . . . Robots Melted . | . . . Combat Hostiles . | . . . Parts Melted . | . . . Heat Transferred 1350 | 506 744 100 Parts Sabotaged . | . . . Parts Stolen . | . . . Parts Stripped . | . . . Power Chain Reactions 4 | . 3 1 Alert | -11 -10 -10 ------- Run | Yrd Mat Sub Maximum Alert Level 1 | . 1 . Low Security (%) 73 | 100 69 . Level 1 26 | . 30 . Level 2 . | . . . Level 3 . | . . . Level 4 . | . . . Level 5 . | . . . High Security . | . . . Max Security . | . . . Peak Influence 267 | 15 267 . Initial 6 | . 6 . Average 119 | 5 134 . Influence Increases 846 | 40 566 240 Destroy 0b10 Robot/C 420 | . 280 140 Destroy 0b10 Robot/NC 75 | 40 35 . Destroy Leader 64 | . 54 10 Successful Hack 52 | . 52 . Select Force Hacks 30 | . 30 . Disable Machine 15 | . 15 . Destroy Structure 10 | . 10 . Lose Combat Pursuer 180 | . 90 90 Influence Decreases 846 | 30 381 435 Entered New Map 99 | . 4 95 Time Decay 687 | 30 347 310 Lost Part 60 | . 30 30 Squads Dispatched 4 | . 4 . Investigation 2 | . 2 . Extermination . | . . . Reinforcement 2 | . 2 . Assault . | . . . Garrison . | . . . Intercept . | . . . Searches Triggered . | . . . Construction Impeded . | . . . Haulers Reinforced . | . . . Active Scanning Responses . | . . . Cargo Convoy Interrupts . | . . . Stealth | -11 -10 -10 --------- Run | Yrd Mat Sub Distress Signals 2 | . 2 . Communications Jammed . | . . . Distress Signals . | . . . Times Spotted 46 | . 27 19 Peak Tracking Total 7 | . 7 4 Tactical Retreats 6 | . 3 3 Traps | -11 -10 -10 ------- Run | Yrd Mat Sub Traps Triggered . | . . . Indirectly . | . . . Trap Hack Attempts . | . . . Triggered . | . . . Disarmed . | . . . Reprogrammed . | . . . Reused . | . . . Traps Extracted . | . . . Installed . | . . . Triggered . | . . . Machines | -11 -10 -10 ---------- Run | Yrd Mat Sub Machines Disabled 1 | . 1 . Max in Single Turn 1 | . 1 . Machines Repaired . | . . . Machines Dismantled . | . . . Machines Sabotaged . | . . . Overloaded Fab Kills . | . . . Hacking | -11 -10 -10 --------- Run | Yrd Mat Sub Machines Accessed 8 | . 7 1 Terminals 6 | . 6 . Fabricators . | . . . Repair Stations . | . . . Recycling Units 1 | . 1 . Scanalyzers . | . . . Garrison Access . | . . . Total Hacks 28 | . 27 1 Successful 15 | . 14 1 Failed 13 | . 13 . Catastrophic . | . . . Database Lockouts . | . . . Manual 26 | . 26 . Terminals 26 | . 26 . Fabricators . | . . . Repair Stations . | . . . Recycling Units 1 | . 1 . Scanalyzers . | . . . Garrison Access . | . . . Terminal Hacks 8 | . 7 1 Robot Analysis 6 | . 6 . Open Door 1 | . . 1 Terminal Index 1 | . 1 . Fabricator Hacks . | . . . Repair Station Hacks . | . . . Recycling Unit Hacks . | . . . Scanalyzer . | . . . Garrison Access Hacks . | . . . Unauthorized Hacks 7 | . 7 . Terminals 6 | . 6 . Botnet 6 | . 6 . Fabricators . | . . . Repair Stations . | . . . Recycling Units 1 | . 1 . Tunnel 1 | . 1 . Scanalyzers . | . . . Garrison Access . | . . . Data Cores Recovered . | . . . Used . | . . . Hacking Detections 6 | . 6 . Full Trace Events 1 | . 1 . Feedback Events . | . . . Feedback Blocked . | . . . Robot Schematics Acquired . | . . . Robots Built . | . . . Authchips . | . . . Time . | . . . Total Robot Build Rating . | . . . Part Schematics Acquired . | . . . Parts Built . | . . . Authchips . | . . . Time . | . . . Total Part Build Rating . | . . . Parts Repaired . | . . . Time . | . . . Parts Recycled . | . . . Recycled Matter . | . . . Retrieved Matter . | . . . Retrieved Components . | . . . Parts Scanalyzed . | . . . Part Schematics Acquired . | . . . Parts Damaged . | . . . Bothacking | -11 -10 -10 ------------ Run | Yrd Mat Sub Used RIF Installer . | . . . Robots Hacked . | . . . Non-combat . | . . . Combat . | . . . Robot Hacks Applied . | . . . Relay Couplers Released . | . . . Fabnet Peak Effective % . | . . . Robots Rewired . | . . . Allies Hacked . | . . . Hacks Repelled . | . . . Allies | -11 -10 -10 -------- Run | Yrd Mat Sub Total Allies . | . . . Largest Group . | . . . Highest-Rated Group . | . . . Highest-Rated Ally . | . . . Total Orders . | . . . Ally Attacks . | . . . Total Damage . | . . . Kills . | . . . Allies Corrupted . | . . . Allies Melted . | . . . Intel | -11 -10 -10 ------- Run | Yrd Mat Sub Active Infowar (turns) 1725 | 42 734 949 Terrain 501 | 42 459 . Structural 1224 | . 275 949 Robot Analysis Total 6 | . 6 . Derelict Logs Recovered 1 | . . 1 Drone Launches . | . . . Drone Recoveries . | . . . Exploration | -11 -10 -10 ------------- Run | Yrd Mat Sub Turns Passed 1932 | 111 872 949 Spaces Moved 1561 | 60 763 738 Core 1 | 1 . . Treads . | . . . Legs . | . . . Wheels 1560 | 59 763 738 Hover . | . . . Flight . | . . . Fastest Speed 50 | 50 80 95 Average Speed 92 | 86 89 95 Slowest Speed 110 | 90 95 110 Overloaded Moves . | . . . Propulsion Burnouts . | . . . Robots Hopped . | . . . Potential Cave-ins . | . . . Cave-ins Triggered . | . . . Exploration Rate (%) 44 | 3 93 38 Regions Visited 2 Branch Regions 1 Pre-discovered Areas 1 | . 1 . Known Exits Taken . | . . . Unknown Exits Taken 2 | 1 1 . Scrap Searched 3 | . . 3 Spaces Dug 6 | . . 6 Terrain Destroyed 17 | . 9 8 Melee . | . . . Projectile 6 | . . 6 AOE 11 | . 9 2 Terrain Rammed . | . . . Walls Destroyed . | . . . Machines Disabled . | . . . Actions | -11 -10 -10 --------- Run | Yrd Mat Sub Total 1834 | 88 883 863 Wait 36 | . 32 4 Move 1559 | 59 762 738 Hop . | . . . Pick Up 31 | 7 14 10 Fast Attach 13 | 7 4 2 Attach 4 | . 1 3 Detach 2 | . 1 1 Swap 16 | 2 9 5 Drop 28 | . 18 10 Fire 145 | 13 42 90 Melee . | . . . Ram . | . . . Kick . | . . . Crush . | . . . Escape Stasis . | . . . Rewire . | . . . Trap . | . . . Miscellaneous . | . . . Route ------- -11/Scrapyard -10/Materials (discovered 4 exits: [*Mat x2] / [*Min] / *Sub) -10/Subcaves (discovered 3 exits: [*Mat x2] / [*Rec]) History --------- Turn | Location | Event 35 | -11/Scrapyard | Discovered new exit (range 12) 112 | -11/Scrapyard | Entered Materials 511 | -10/Materials | Discovered new exit (range 16) 707 | -10/Materials | Build established: Mutant 732 | -10/Materials | Discovered new exit (range 3) 767 | -10/Materials | Discovered new exit (range 13) 914 | -10/Materials | Discovered new exit (range 12) 984 | -10/Materials | Entered Subcaves 985 | -10/Subcaves | Approached by a straggling Scientist 1026 | -10/Subcaves | A swath of the cavern ceiling suddenly collapsed 1094 | -10/Subcaves | Discovered new exit (range 8) 1263 | -10/Subcaves | Discovered new exit (range 12) 1319 | -10/Subcaves | Learned Materials stockpile data 1324 | -10/Subcaves | Disturbed a concealed Subdweller 1642 | -10/Subcaves | Discovered new exit (range 10) 1649 | -10/Subcaves | Core integrity fell below 50% 1720 | -10/Subcaves | Ambushed by Subdwellers from Twisted Machinery 1924 | -10/Subcaves | Ambushed by Subdwellers from Twisted Machinery 1930 | -10/Subcaves | Core integrity fell below 20% 1933 | -10/Subcaves | Destroyed by 6D-ZEF(R) with Subdweller Laser Last Messages --------------- Sealed Heavy Doors opened. 01866_ Acquired 44 matter. 01868_ Dropped Wheel. 01869_ Acquired Wheel. 01873_ Dropped Sub. Power Source. 01873_ Acquired Sub. Power Source. 01873_ Acquired 30 matter. FX-9IV(c): "I think it's somewhere southeast of here" 01924_ FF-2HV(R) emerges from the Twisted Machinery. 01931_ FF-2HV(R) destroyed. Map ----- +----------------------------------------------------+ | ###" ??## ###???????? ##???????????????? | | """????## ##???#### ##???????????????? | | """"###### ##??##### ###???????????????? | | "######### ###### ###????????????????? | | "###""### ##### ##?????????????????? | | ### ""#### ### ###?????????????????? | | ### #### ##??????????????????? | | ## ## ##??????????????????? | | # ##????? ???????????? | | #### #### ? "???????????? | | ######## ########### ""??????????? | | ########## ####### ## ???????????? | | #######??####### ### ##???????????? | | ######?########## ## ##???????????? | | ####???## #### ##???????????? | | ####? ### ##???????????? | | #### #### ##???????????? | | #### #### ##???????????? | | #### #### ?????????????? | | ##### ##### #####?###????????? | | ###### ####### ## ##????????? | | ##??######?######## ##????????? | | #????####???####### ###????????? | | #???????????????## #### ####????????? | | #??????????????### ##### ######?????????? | | ##?????????????### @###??? #####??????????? | | ##?????????????## ##????? ##????????????? | | ###????????????### ###?????? ##????????????? | | "##????????????#### ###?????? ##????????????? | | "##?????????????### =R! ##?????? ##????????????? | | "##??????????????##""""%& ?????????????????????? | | "##??????????????#####""" ?????????????????? | | ###??????????????#######"""# ###?????????????????? | | ###?????????????????#### ""#####?????????????????? | | ??????????????????????## ####??????????????????? | | ???????????????????????? ????????????????????? | | ???????????????????????? ??????????????????????? | | ????????????????????????? ???????????????????????? | | ?????????????????????????????????????????????????? | | ?????????????????????????????????????????????????? | | ?????????????????????????????????????????????????? | | ?????????????????????????????????????????????????? | | ?????????????????????????????????????????????????? | | ?????????????????????????????????????????????????? | | ?????????????????????????????????????????????????? | | ?????????????????????????????????????????????????? | | ?????????????????????????????????????????????????? | | ?????????????????????????????????????????????????? | | ?????????????????????????????????????????????????? | | ?????????????????????????????????????????????????? | +----------------------------------------------------+ Best States ------------- Heat Dissipation 25 Energy Generation 15 Energy Capacity 280 Matter Stores 300 Matter Capacity 300 Sight Range 16 Terrain Scan Range 16 Terrain Scan Density 10 Evasion (%) 44 Item Schematics ----------------- None Robot Schematics ------------------ None Fabricated ------------ Nothing Repaired ---------- Nothing Alien Tech Used ----------------- None Achievements -------------- None Challenges ------------ None Game ------ Seed TrackerMyomerPower Manual? 0 Play Time 00:21:01 Cumulative 233.3 hours Start 2025.05.25 @ 05:12:28 End 2025.05.25 @ 05:34:02 Sessions 1 Manual Loads 0 Difficulty Rogue Special Mode None Game No. 138 Rogue 138 Adventurer 0 Explorer 0 Win Type - Total 3 Types 1/0/1/1/0/0/0/0/0/0 Lore% 76 Gallery% 64 Achievement% 63 Wizard Run 0 Options --------- Layout 2 ASCII 0 Keyboard 1 Movement Vi Keybinds 0 Fullscreen 1 Font 16/SmallcapsGlow Map View 55x47 Zoom Use 0% Tactical HUD 1 Map Filters NONE Filters NONE Steam 0 RUN: 4b77d73c-c270-4318-82a4-3733e4934278